bitfinex/quotes_SOLUSD_20250518
["timestamp","ask_amount","ask_price","bid_price","bid_amount"]
[1747607723977,29.58,168.8,168.72,1.18499737]
[1747607724360,35.5041915,168.8,168.71,18.64964886]
[1747607724677,29.58,168.8,168.72,5.92697961]
[1747607724858,5.92452159,168.79,168.72,5.92697961]
[1747607725165,5.92452159,168.79,168.7,31.92760329]
[1747607725166,20.25145055,168.77,168.7,31.92760329]
[1747607725571,20.25145055,168.77,168.68,5.92813265]
[1747607725758,20.77075055,168.76,168.68,26.0]
[1747607726147,20.25145055,168.75,168.65,24.57883056]
[1747607726348,20.77075055,168.74,168.65,5.9291817]
[1747607726548,26.17807889,168.73,168.65,26.0]
[1747607726966,20.25145055,168.71,168.62,5.93042785]
[1747607727179,20.25145055,168.71,168.66,2.3]
[1747607727479,20.77075055,168.7,168.63,2.81]
[1747607727650,20.77075055,168.7,168.61,5.93079907]
[1747607728074,20.25145055,168.69,168.59,5.93154991]
[1747607728472,5.9283851,168.68,168.62,26.0]
[1747607728679,5.9283851,168.68,168.62,31.93039027]
[1747607728862,28.62,168.71,168.62,31.93039027]
[1747607729472,55.31812786,168.71,168.62,31.93039027]
[1747607729671,20.25145055,168.7,168.62,31.93039027]
[1747607729980,0.5193,168.69,168.62,26.0]
[1747607730275,35.06667731,168.71,168.62,31.93037406]
[1747607730777,6.4376,168.73,168.63,18.64964886]
[1747607730980,1.6391,168.75,168.63,19.83547222]
[1747607731352,7.56508966,168.75,168.63,19.83547222]
[1747607731557,20.77075055,168.74,168.63,18.64964886]
[1747607731761,20.77075055,168.74,168.62,46.75661056]
[1747607731965,20.25145055,168.73,168.62,46.75661056]
[1747607732173,0.5193,168.72,168.63,2.3]
[1747607732469,0.5193,168.72,168.64,5.92979127]
[1747607732863,6.44632367,168.72,168.64,5.92979127]
[1747607733272,6.4004,168.69,168.63,2.3]
[1747607733450,20.77075055,168.68,168.6,5.9311981]
[1747607733661,20.25145055,168.67,168.57,5.93225366]
[1747607733868,0.5193,168.66,168.58,26.0]
[1747607734274,0.5193,168.66,168.58,2.81]
[1747607734480,0.5193,168.66,168.58,28.81]
[1747607734660,0.5193,168.66,168.59,31.93154991]
[1747607734859,0.5193,168.67,168.59,31.93154991]
[1747607735273,5.92842636,168.68,168.59,31.93154991]
[1747607735472,34.9797,168.69,168.6,18.64964886]
[1747607735665,28.06,168.69,168.63,26.0]
[1747607735865,26.83245055,168.73,168.63,26.0]
[1747607735866,6.581,168.73,168.64,18.64964886]
[1747607736068,34.48571978,168.74,168.64,18.64964886]
[1747607736759,28.04,168.74,168.65,5.92943966]
[1747607736963,28.04,168.74,168.65,21.93853415]
[1747607737273,28.04,168.74,168.66,2.3]
[1747607737472,48.37145055,168.8,168.68,26.0]
[1747607737685,20.25145055,168.78,168.68,26.0]
[1747607737871,20.77075055,168.77,168.68,26.0]
[1747607738182,0.5193,168.77,168.68,26.0]
[1747607738400,0.5193,168.79,168.68,26.0]
[1747607738558,6.0989,168.81,168.72,26.0]
[1747607738886,12.02284907,168.81,168.73,5.92662834]
[1747607739088,20.25145055,168.79,168.68,26.0]
[1747607739385,20.77075055,168.78,168.68,26.0]
[1747607739785,0.5193,168.78,168.68,26.0]
[1747607740081,20.77075055,168.78,168.68,26.0]
[1747607740296,5.92522367,168.77,168.69,5.92803367]
[1747607740465,0.5193,168.8,168.69,24.57768253]
[1747607741190,6.44347061,168.8,168.69,24.57768253]
[1747607741391,26.69492116,168.8,168.69,5.92803367]
[1747607742067,6.44347061,168.8,168.69,24.57768253]
[1747607742263,6.44347061,168.8,168.71,5.92733092]
[1747607742469,0.5193,168.8,168.71,5.92733092]
[1747607742696,0.5193,168.8,168.71,20.74565822]
[1747607743363,6.44354451,168.8,168.71,5.92733092]
[1747607743563,26.69499506,168.8,168.69,5.92803367]
[1747607743790,41.5054216,168.8,168.69,5.92803367]
[1747607744171,41.5054216,168.8,168.7,18.64964886]
[1747607744172,6.44354451,168.8,168.7,18.64964886]
[1747607744677,6.0989,168.81,168.72,18.64964886]
[1747607744872,7.96177322,168.82,168.72,19.83466236]
[1747607745068,7.96177322,168.82,168.74,26.0]
[1747607745466,28.62,168.84,168.75,26.0]
[1747607745779,6.0251,168.85,168.76,18.64964886]
[1747607746276,11.94784662,168.85,168.76,18.64964886]
[1747607746702,11.94784662,168.85,168.77,5.92522367]
[1747607747376,7.50257285,168.86,168.77,5.92522367]
[1747607748701,20.77075055,168.85,168.76,5.9255101]
[1747607748869,20.77075055,168.85,168.75,26.0]
[1747607749187,20.25145055,168.84,168.75,31.92579454]
[1747607749397,22.30773689,168.86,168.73,5.92653001]
[1747607749398,20.25145055,168.82,168.73,5.92653001]
[1747607749574,0.5193,168.81,168.73,6.06653001]
[1747607749772,0.5193,168.81,168.74,26.0]
[1747607750096,20.25145055,168.83,168.74,26.0]
[1747607750264,0.5193,168.82,168.73,6.06653001]
[1747607750706,5.92381967,168.81,168.73,6.06653001]
[1747607750995,0.5193,168.8,168.73,6.06653001]
[1747607751578,5.92452159,168.79,168.73,6.06653001]
[1747607751780,5.92452159,168.79,168.73,5.92653001]
[1747607751982,6.44338192,168.81,168.73,5.92653001]
[1747607752481,6.5561,168.8,168.7,5.92741543]
[1747607752679,6.44338192,168.81,168.71,18.64964886]
[1747607752992,20.25145055,168.8,168.7,31.92741543]
[1747607753169,6.44338192,168.81,168.7,31.92741543]
[1747607753376,6.44338192,168.81,168.71,18.64964886]
[1747607753995,0.5193,168.82,168.73,44.64964886]
[1747607754296,0.5193,168.82,168.73,26.0]
[1747607756096,0.5193,168.82,168.74,5.92627711]
[1747607756406,5.92284558,168.84,168.75,18.64964886]
[1747607757109,6.44173608,168.85,168.75,18.64964886]
[1747607757275,5.92243608,168.85,168.75,19.83444793]
[1747607757672,0.5193,168.84,168.75,18.64964886]
[1747607757907,0.5193,168.84,168.74,5.92627711]
[1747607758201,5.92311792,168.83,168.74,5.92627711]
[1747607758405,0.5193,168.82,168.74,5.92627711]
[1747607759078,20.77075055,168.82,168.73,164.4]
[1747607759278,0.5193,168.82,168.73,164.4]
[1747607759500,20.77075055,168.82,168.73,164.4]
[1747607760324,5.92381967,168.81,168.73,138.4]
[1747607760482,0.5193,168.8,168.72,5.92696122]
[1747607760682,0.5193,168.8,168.7,5.92768227]
[1747607760884,20.77075055,168.8,168.71,28.81]
[1747607761092,26.82,168.79,168.71,26.0]
[1747607761292,0.5193,168.78,168.71,26.0]
[1747607761691,26.82,168.79,168.71,26.0]
[1747607762601,6.44357801,168.8,168.72,5.92697961]
[1747607762914,0.5193,168.8,168.72,5.92697961]
[1747607763118,6.44311967,168.81,168.72,5.92697961]
[1747607763290,5.92241634,168.85,168.76,26.0]
[1747607763614,32.9989,168.88,168.77,19.83447531]
[1747607763786,6.8382,168.88,168.77,19.83447531]
[1747607763983,12.75963387,168.88,168.77,19.83447531]
[1747607764180,12.75963387,168.88,168.76,33.9914]
[1747607764377,20.25145055,168.86,168.76,26.0]
[1747607764597,5.92276711,168.84,168.76,26.0]
[1747607764811,0.5193,168.83,168.76,26.0]
[1747607765220,20.77075055,168.83,168.71,9.17639458]
[1747607765415,46.87145055,168.82,168.71,6.422]
[1747607765605,0.5193,168.81,168.72,26.0]
[1747607766028,20.77075055,168.81,168.71,6.422]
[1747607766194,20.25145055,168.79,168.67,1.5694]
[1747607766394,20.77075055,168.78,168.68,8.7383851]
[1747607766591,5.92522367,168.77,168.69,26.0]
[1747607766825,0.5193,168.76,168.66,6.422]
[1747607766987,26.56,168.75,168.65,32.64916862]
[1747607767192,0.5193,168.74,168.65,31.92916862]
[1747607767407,20.77075055,168.74,168.66,2.81]
[1747607767903,20.25145055,168.73,168.62,13.92168898]
[1747607768105,20.77075055,168.72,168.62,5.93028898]
[1747607768294,20.77075055,168.72,168.64,2.81]
[1747607768615,2.0554,168.72,168.64,8.73949807]
[1747607768788,0.5193,168.74,168.67,26.0]
[1747607769240,26.5,168.75,168.68,26.0]
[1747607770022,0.5193,168.78,168.68,26.0]
[1747607770815,0.5193,168.78,168.7,5.92768227]
[1747607770991,6.44427553,168.78,168.7,5.92768227]
[1747607771191,0.5193,168.78,168.7,5.92768227]
[1747607772210,2.1664,168.8,168.7,20.74688796]
[1747607772413,8.1599,168.84,168.71,44.64964886]
[1747607772591,8.1599,168.84,168.72,1.18496266]
[1747607772793,8.1599,168.84,168.74,44.64964886]
[1747607773021,26.7993,168.87,168.77,26.0]
[1747607773213,0.5193,168.88,168.78,18.64964886]
[1747607773403,6.2149,168.89,168.81,26.0]
[1747607773612,53.04,168.91,168.81,26.0]
[1747607773814,20.77075055,168.9,168.79,26.0]
[1747607774014,20.25145055,168.86,168.76,6.4383]
[1747607774202,0.5193,168.85,168.75,26.0]
[1747607774520,26.32,168.84,168.75,26.0]
[1747607774705,0.5193,168.83,168.75,26.0]
[1747607775207,6.44250112,168.83,168.76,26.0]
[1747607775390,6.44250112,168.83,168.75,26.0]
[1747607775794,6.44250112,168.83,168.76,2.3]
[1747607776297,6.44250112,168.83,168.71,26.0]
[1747607776298,20.25145055,168.81,168.71,26.0]
[1747607776496,20.77075055,168.8,168.71,26.0]
[1747607776713,0.5193,168.8,168.71,26.0]
[1747607777122,5.92381967,168.81,168.71,31.92719428]
[1747607777627,0.5193,168.8,168.71,26.0]
[1747607778596,20.25145055,168.79,168.69,26.0]
[1747607778929,0.5193,168.78,168.68,12.36083106]
[1747607779134,0.5193,168.78,168.69,26.0]
[1747607779135,5.92557478,168.76,168.69,26.0]
[1747607779433,21.25881173,168.76,168.66,5.92884732]
[1747607779594,41.51026228,168.76,168.65,5.92940876]
[1747607779797,20.25145055,168.73,168.63,5.93014291]
[1747607780004,0.5193,168.72,168.64,26.0]
[1747607780224,20.77075055,168.72,168.61,5.93051806]
[1747607780520,20.77075055,168.72,168.63,0.13]
[1747607780710,20.77075055,168.72,168.64,2.3]
[1747607781034,20.25145055,168.71,168.63,0.13]
[1747607781327,26.7193,168.7,168.64,5.92979127]
[1747607781502,32.64704332,168.7,168.64,5.92979127]
[1747607781700,26.2,168.7,168.64,5.92979127]
[1747607784025,0.5193,168.69,168.61,26.0]
[1747607784739,46.92119941,168.75,168.61,31.93075749]
[1747607784740,6.44665283,168.71,168.61,31.93075749]
[1747607784935,32.66665283,168.71,168.61,31.93075749]
[1747607785151,26.22,168.71,168.62,19.83541126]
[1747607785437,26.22,168.71,168.64,26.0]
[1747607785934,32.14745748,168.71,168.64,31.92963223]
[1747607786298,26.22,168.71,168.64,31.92963223]
[1747607787118,32.14747863,168.71,168.64,31.92963223]
[1747607787723,0.5193,168.7,168.63,2.3]
[1747607787928,5.92803367,168.69,168.63,2.3]
[1747607788231,20.25145055,168.67,168.57,5.93225366]
[1747607788413,0.5193,168.66,168.58,28.81]
[1747607789312,5.92923714,168.66,168.59,5.93154991]
[1747607790222,0.5193,168.65,168.59,5.93154991]
[1747607790413,6.44879391,168.65,168.59,5.93154991]
[1747607790611,0.5193,168.65,168.59,5.93154991]
[1747607790807,0.5193,168.65,168.6,2.3]
[1747607791307,6.44839371,168.66,168.6,2.3]
[1747607792244,20.25145055,168.65,168.6,2.3]
[1747607792436,20.25145055,168.63,168.54,5.93330682]
[1747607792734,0.5193,168.62,168.55,2.81]
[1747607793520,0.5193,168.63,168.55,2.81]
[1747607793720,0.5193,168.63,168.53,13.39053977]
[1747607794111,5.9304946,168.62,168.54,26.0]
[1747607794312,0.5193,168.61,168.53,7.45695875]
[1747607794546,0.5193,168.61,168.53,13.39055288]
[1747607794836,0.5193,168.61,168.53,5.93359413]
[1747607795052,0.5193,168.61,168.52,5.93393816]
[1747607795338,20.77075055,168.61,168.52,31.93393816]
[1747607795551,0.5193,168.61,168.52,31.93393816]
[1747607796162,6.45027899,168.61,168.52,31.93393816]
[1747607796644,26.70172954,168.61,168.52,31.93393816]
[1747607797438,26.70172954,168.61,168.52,5.93393816]
[1747607797640,20.25145055,168.6,168.52,5.93393816]
[1747607797827,0.5193,168.59,168.52,5.93393816]
[1747607798034,6.45107214,168.59,168.49,5.93507033]
[1747607798234,6.45107214,168.59,168.5,26.0]
[1747607798546,26.70252269,168.59,168.5,26.0]
[1747607798936,0.5193,168.59,168.5,26.0]
[1747607799144,6.45094472,168.59,168.5,26.0]
[1747607800958,6.45094472,168.59,168.51,5.93436591]
[1747607802054,0.5193,168.59,168.51,5.93436591]
[1747607802260,20.25145055,168.58,168.48,5.9354226]
[1747607802435,0.5193,168.57,168.48,5.9354226]
[1747607802634,0.5193,168.57,168.48,31.9354226]
[1747607802838,6.45180257,168.57,168.48,5.9354226]
[1747607803054,6.45180257,168.57,168.48,31.9354226]
[1747607803250,6.45180257,168.57,168.49,2.81]
[1747607803576,0.5193,168.57,168.49,2.81]
[1747607804060,74.9393,168.6,168.51,26.0]
[1747607804264,80.87059056,168.6,168.51,26.0]
[1747607804758,80.87059056,168.6,168.5,26.0]
[1747607804962,80.87059056,168.6,168.51,5.93436591]
[1747607805264,115.95003636,168.6,168.48,5.9354226]
[1747607805441,6.054,168.59,168.48,5.9354226]
[1747607805642,0.5193,168.58,168.48,31.9354226]
[1747607806347,5.93225366,168.57,168.48,31.9354226]
[1747607806662,0.5193,168.56,168.48,31.9354226]
[1747607807464,6.45224975,168.56,168.48,31.9354226]
[1747607807653,0.5193,168.58,168.48,31.9354226]
[1747607808038,6.45130067,168.58,168.48,46.7739791]
[1747607808233,1.5542,168.57,168.48,46.7739791]
[1747607808459,46.99075055,168.56,168.45,5.93647966]
[1747607808966,46.99075055,168.56,168.45,31.93647966]
[1747607809139,18.64964886,168.55,168.42,5.9375371]
[1747607809339,0.5193,168.54,168.42,5.9375371]
[1747607809569,5.93366166,168.53,168.44,5.9368321]
[1747607809768,26.7193,168.52,168.44,5.9368321]
[1747607810555,5.93436591,168.51,168.44,5.9368321]
[1747607810867,0.5193,168.5,168.45,2.81]
[1747607811254,0.5193,168.5,168.44,5.9368321]
[1747607811455,0.5193,168.5,168.43,5.93713106]
[1747607812166,0.5193,168.5,168.42,31.93750159]
[1747607812576,5.93507033,168.49,168.36,20.92917844]
[1747607812748,2.0608,168.48,168.37,2.82]
[1747607813447,2.0608,168.48,168.37,28.82]
[1747607813749,5.93577491,168.47,168.37,34.75930035]
[1747607813967,0.5193,168.46,168.37,34.75930035]
[1747607814851,6.45551522,168.46,168.37,34.75930035]
[1747607816171,26.22,168.45,168.37,28.82]
[1747607816471,0.5193,168.44,168.37,28.82]
[1747607817142,0.5193,168.44,168.37,2.82]
[1747607817960,0.5193,168.44,168.37,8.75919282]
[1747607818274,0.5193,168.44,168.37,5.93919282]
[1747607818473,6.45623381,168.44,168.34,5.94035879]
[1747607821079,6.45623381,168.44,168.35,0.13]
[1747607821579,0.5193,168.44,168.35,32.06986882]
[1747607821757,26.22,168.45,168.38,26.0]
[1747607822451,26.22,168.45,168.36,27.18755365]
[1747607822672,26.22,168.45,168.37,0.13]
[1747607822981,0.5193,168.44,168.37,0.13]
[1747607823154,5.93718458,168.43,168.37,0.13]
[1747607823353,5.93718458,168.43,168.37,6.06923674]
[1747607823551,6.45621599,168.44,168.37,6.06923674]
[1747607824769,6.45621599,168.44,168.37,0.13]
[1747607825477,6.45621599,168.44,168.37,6.06917986]
[1747607825857,26.22,168.45,168.37,6.06917986]
[1747607826881,32.15650091,168.45,168.37,6.06917986]
[1747607827067,26.22,168.45,168.37,20.91743073]
[1747607827769,7.99631674,168.48,168.4,26.0]
[1747607828089,5.93551674,168.48,168.4,26.0]
[1747607828994,5.93551674,168.48,168.41,5.93788967]
[1747607829363,32.67444092,168.49,168.41,5.93788967]
[1747607830293,0.5193,168.49,168.45,44.64964886]
[1747607830465,26.2,168.58,168.5,26.0]
[1747607830871,26.2,168.58,168.51,26.0]
[1747607831069,32.13196989,168.58,168.48,5.93539901]
[1747607831280,32.13196989,168.58,168.49,26.0]
[1747607831485,26.2,168.58,168.49,26.0]
[1747607832494,32.13195221,168.58,168.57,20.25745273]
[1747607832672,32.13195221,168.58,168.49,26.0]
[1747607832990,32.13195221,168.58,168.57,20.25745273]
[1747607833509,26.2,168.58,168.57,20.25745273]
[1747607834000,33.73581053,168.61,168.57,20.25745273]
[1747607834203,33.73581053,168.61,168.58,20.25745273]
[1747607834391,33.73581053,168.61,168.56,20.25745273]
[1747607835172,18.64964886,168.6,168.56,20.25745273]
[1747607835399,18.64964886,168.6,168.55,20.25745273]
[1747607835702,18.64964886,168.6,168.56,20.25745273]
[1747607836202,18.64964886,168.6,168.55,20.25745273]
[1747607836395,18.64964886,168.6,168.56,20.25745273]
[1747607836605,18.64964886,168.6,168.57,20.25745273]
[1747607836779,5.93154991,168.59,168.57,20.25745273]
[1747607837108,5.93154991,168.59,168.56,20.25745273]
[1747607838186,5.93154991,168.59,168.57,20.25745273]
[1747607838981,5.93154991,168.59,168.56,20.25745273]
[1747607839600,5.93154991,168.59,168.58,20.25745273]
[1747607839783,5.9312851,168.6,168.58,20.25745273]
[1747607839980,5.9312851,168.6,168.59,20.25745273]
[1747607840183,5.9312851,168.6,168.51,31.93434764]
[1747607840385,5.9312851,168.6,168.57,20.25745273]
[1747607841286,5.9312851,168.6,168.56,20.25745273]
[1747607841982,20.75928035,168.6,168.56,20.25745273]
[1747607842705,20.75928035,168.6,168.57,20.25745273]
[1747607843580,20.75928035,168.6,168.58,20.25745273]
[1747607843796,5.9312851,168.6,168.59,12.66067802]
[1747607845210,26.2,168.62,168.59,12.66067802]
[1747607845392,26.2,168.62,168.61,12.66067802]
[1747607845782,14.81978531,168.7,168.61,38.66067802]
[1747607845982,14.81978531,168.7,168.57,12.66067802]
[1747607845983,26.16,168.69,168.58,26.0]
[1747607846199,38.82067802,168.69,168.64,12.66067802]
[1747607846999,5.9283851,168.68,168.64,12.66067802]
[1747607847493,12.66067802,168.67,168.62,12.66067802]
[1747607847692,12.65680114,168.65,168.54,26.0]
[1747607847879,20.66700114,168.65,168.55,5.93293793]
[1747607848078,20.66700114,168.65,168.54,26.0]
[1747607848506,12.65680114,168.64,168.53,12.27087752]
[1747607849082,20.7555002,168.63,168.53,12.27087752]
[1747607849291,38.81680114,168.62,168.53,6.3373]
[1747607849508,38.81680114,168.62,168.49,32.4385]
[1747607849713,38.81680114,168.62,168.52,26.0]
[1747607849909,12.65680114,168.6,168.49,32.4385]
[1747607850096,12.65680114,168.6,168.49,6.2585]
[1747607850294,12.65680114,168.6,168.49,12.19347255]
[1747607850616,12.65680114,168.59,168.49,12.19347255]
[1747607850915,12.65680114,168.57,168.46,5.93612727]
[1747607851119,18.58940674,168.56,168.46,5.93612727]
[1747607851414,26.14,168.55,168.46,26.0]
[1747607851792,26.14,168.55,168.45,12.19492883]
[1747607851997,26.14,168.55,168.46,26.0]
[1747607852998,5.9333096,168.54,168.47,5.93577491]
[1747607853315,32.07299171,168.55,168.47,5.93577491]
[1747607854989,32.07299171,168.55,168.46,31.93603421]
[1747607855708,32.07299171,168.55,168.46,26.0]
[1747607856125,46.90538565,168.55,168.46,26.0]
[1747607856418,12.65680114,168.54,168.44,8.5046025]
[1747607856608,12.65680114,168.52,168.44,8.5046025]
[1747607856913,1.5108,168.51,168.43,26.0]
[1747607857123,27.49447696,168.49,168.35,2.96784012]
[1747607857417,26.14,168.48,168.37,2.82]
[1747607857804,26.14,168.48,168.39,26.0]
[1747607858007,26.14,168.48,168.41,26.0]
[1747607858714,5.93445264,168.51,168.42,18.64964886]
[1747607859226,5.93445264,168.51,168.43,5.93718458]
[1747607859420,32.07402091,168.52,168.43,5.93718458]
[1747607863617,32.07402091,168.52,168.42,5.9375371]
[1747607864497,79.50645,168.51,168.4,1.6411]
[1747607865819,5.9347181,168.5,168.4,7.57928778]
[1747607866200,18.59151924,168.5,168.4,5.93818778]
[1747607866924,5.9347181,168.5,168.4,5.93818778]
[1747607867414,6.2915,168.49,168.4,5.93818778]
[1747607868500,5.9354226,168.48,168.4,5.93818778]
[1747607871121,20.77028069,168.51,168.4,5.93818778]
[1747607871521,5.93436591,168.51,168.4,5.93818778]
[1747607875021,20.77028069,168.51,168.4,5.93818778]
[1747607877723,5.93436591,168.51,168.4,20.78379348]
[1747607877913,32.01436591,168.51,168.41,18.64964886]
[1747607878098,26.08,168.51,168.41,18.64964886]
[1747607878632,26.08,168.51,168.4,20.78379348]
[1747607879430,5.9347181,168.5,168.4,20.78379348]
[1747607880233,5.9347181,168.5,168.4,5.93818778]
[1747607880411,18.59151924,168.5,168.4,5.93818778]
[1747607881538,5.9347181,168.5,168.4,5.93818778]
[1747607882812,38.65680114,168.49,168.38,5.93894761]
[1747607883014,14.18280114,168.47,168.37,31.9391893]
[1747607883320,14.18280114,168.47,168.38,2.82]
[1747607883531,5.93612727,168.46,168.37,31.9391893]
[1747607884336,59.43324658,168.46,168.36,5.93957031]
[1747607885116,12.65680114,168.44,168.33,7.8351]
[1747607885319,26.04,168.43,168.33,6.2122]
[1747607885518,5.9375371,168.42,168.33,31.94069388]
[1747607885724,5.9375371,168.42,168.33,5.94069388]
[1747607885917,18.59433824,168.42,168.31,5.94141762]
[1747607886117,18.64964886,168.41,168.31,5.94141762]
[1747607886610,46.82137987,168.42,168.32,2.82]
[1747607887219,46.82137987,168.42,168.33,5.94071169]
[1747607887539,31.9775371,168.42,168.34,0.13]
[1747607888041,26.04,168.42,168.34,0.13]
[1747607888239,31.97754483,168.42,168.34,0.13]
[1747607888623,44.63434597,168.42,168.34,0.13]
[1747607889040,38.65680114,168.41,168.34,0.13]
[1747607889365,7.54829492,168.39,168.34,0.13]
[1747607889542,35.05158338,168.39,168.34,0.13]
[1747607889714,18.64964886,168.38,168.34,0.13]
[1747607889914,6.2098,168.37,168.34,0.13]
[1747607890129,26.04,168.36,168.34,0.13]
[1747607890341,26.04,168.36,168.28,0.13]
[1747607890738,44.68964886,168.35,168.28,0.13]
[1747607891531,5.94035879,168.34,168.28,0.13]
[1747607892741,12.14913344,168.37,168.28,6.07243438]
[1747607892926,26.02,168.35,168.28,5.94243438]
[1747607893535,26.02,168.35,168.27,20.79935118]
[1747607893941,26.02,168.35,168.28,18.64964886]
[1747607894137,100.22,168.38,168.28,19.83768892]
[1747607894524,100.22,168.38,168.3,26.0]
[1747607894525,26.02,168.38,168.3,26.0]
[1747607894725,1.5236,168.43,168.32,26.0]
[1747607894943,27.5436,168.43,168.32,26.0]
[1747607895348,26.02,168.43,168.36,26.0]
[1747607895651,26.02,168.43,168.37,5.93930035]
[1747607896236,7.54411355,168.48,168.37,5.93930035]
[1747607896551,26.0,168.48,168.4,26.0]
[1747607897145,31.93514888,168.49,168.4,26.0]
[1747607897444,7.54264852,168.52,168.41,18.64964886]
[1747607897751,7.54264852,168.52,168.42,5.9375371]
[1747607897752,5.93404852,168.52,168.42,5.9375371]
[1747607898547,52.06,168.54,168.45,26.0]
[1747607898923,26.06,168.54,168.45,26.0]
[1747607899647,31.99336548,168.54,168.46,5.93612727]
[1747607900154,25.98,168.56,168.46,21.96333469]
[1747607900730,5.93255819,168.57,168.46,21.96333469]
[1747607900932,25.98,168.56,168.46,5.93612727]
[1747607901137,25.98,168.56,168.45,26.0]
[1747607901138,25.98,168.56,168.45,31.93644724]
[1747607901458,26.0,168.53,168.39,6.1848]
[1747607901753,5.93436591,168.51,168.43,26.0]
[1747607901978,41.06024414,168.51,168.39,6.1848]
[1747607902255,20.77028069,168.51,168.42,26.0]
[1747607902434,20.77028069,168.51,168.39,12.12329188]
[1747607902854,20.77028069,168.51,168.42,26.0]
[1747607903731,41.06024414,168.51,168.42,26.0]
[1747607904334,5.93436591,168.51,168.42,26.0]
[1747607904976,5.93436591,168.51,168.39,7.37215124]
[1747607905133,18.64964886,168.48,168.36,26.06]
[1747607905330,18.64964886,168.48,168.35,6.2651]
[1747607905331,20.28996345,168.46,168.35,6.2651]
[1747607905534,20.28996345,168.46,168.38,26.0]
[1747607905856,5.93612727,168.46,168.38,26.0]
[1747607906955,20.77644544,168.46,168.38,26.0]
[1747607907155,20.28996345,168.45,168.33,1.521]
[1747607907343,20.28996345,168.45,168.35,26.0]
[1747607907654,31.97612727,168.46,168.36,26.0]
[1747607908038,31.97612727,168.46,168.37,5.93930035]
[1747607908250,31.97612727,168.46,168.36,31.93960369]
[1747607909041,25.94,168.48,168.37,19.83715211]
[1747607909356,25.94,168.48,168.4,26.0]
[1747607910238,25.94,168.48,168.41,5.93788967]
[1747607911357,25.94,168.48,168.4,31.93819436]
[1747607911661,31.87542802,168.48,168.39,31.93853032]
[1747607912747,67.00394797,168.48,168.35,5.94000594]
[1747607912950,18.64964886,168.47,168.35,5.94000594]
[1747607913142,20.28996345,168.46,168.36,26.0]
[1747607913837,26.22644311,168.45,168.36,31.93963563]
[1747607914055,5.93647966,168.45,168.36,31.93963563]
[1747607914938,31.93619909,168.46,168.36,31.93963563]
[1747607915166,26.0,168.46,168.36,31.93963563]
[1747607915556,26.0,168.46,168.37,18.64964886]
[1747607915740,25.9,168.47,168.4,26.0]
[1747607916563,25.9,168.48,168.4,26.0]
[1747607916748,25.9,168.54,168.44,26.0]
[1747607916952,25.9,168.53,168.44,26.0]
[1747607917140,25.9,168.53,168.45,5.93647966]
[1747607917342,52.12380905,168.53,168.44,5.93673262]
[1747607917549,31.8338456,168.53,168.44,5.93673262]
[1747607917970,25.9,168.53,168.44,5.93673262]
[1747607918267,25.9,168.53,168.44,20.77881288]
[1747607918749,31.83372358,168.53,168.44,5.93673262]
[1747607919344,31.83372358,168.53,168.43,31.93713124]
[1747607919547,52.12368703,168.53,168.43,31.93713124]
[1747607919745,31.83372358,168.53,168.43,31.93713124]
[1747607921673,31.83372358,168.53,168.41,14.84427607]
[1747607921674,46.28996345,168.51,168.41,5.93767219]
[1747607921973,20.28996345,168.5,168.41,31.93767219]
[1747607922160,26.0,168.51,168.41,31.93767219]
[1747607922346,25.86,168.5,168.41,31.93767219]
[1747607922673,25.86,168.5,168.41,46.78239637]
[1747607923069,25.86,168.5,168.41,26.0]
[1747607923592,5.93507033,168.49,168.42,5.9375371]
[1747607923949,31.79478353,168.5,168.42,5.9375371]
[1747607924466,25.86,168.5,168.42,20.78137987]
[1747607926642,31.79474637,168.5,168.42,5.9375371]
[1747607927279,25.86,168.5,168.42,5.9375371]
[1747607927582,31.79482157,168.5,168.41,31.93779381]
[1747607927879,31.79482157,168.5,168.41,26.0]
[1747607928076,46.63161682,168.5,168.39,5.93859492]
[1747607928380,31.79482157,168.5,168.4,26.0]
[1747607929070,46.63161682,168.5,168.4,26.0]
[1747607929253,68.48996345,168.49,168.38,33.53763086]
[1747607929874,68.48996345,168.49,168.38,7.53763086]